fUSD/lending_fUSD_20241116
["ID","MTS","AMOUNT","RATE_DAILY","PERIOD"]
[342355637,1731774634923,-500.0,9.999e-05,2]
[342355638,1731774634932,-500.0,9.999e-05,2]
[342355639,1731774634942,-500.0,9.999e-05,2]
[342355640,1731774634952,-500.0,9.999e-05,2]
[342355641,1731774634962,-500.0,9.999e-05,2]
[342355642,1731774634971,-500.0,9.999e-05,2]
[342355643,1731774634981,-500.0,9.999e-05,2]
[342355644,1731774634990,-500.0,9.999e-05,2]
[342355645,1731774635000,-500.0,9.999e-05,2]
[342355646,1731774635010,-500.0,9.999e-05,2]
[342355647,1731774635020,-500.0,9.999e-05,2]
[342355648,1731774635030,-500.0,9.999e-05,2]
[342355649,1731774635039,-500.0,9.999e-05,2]
[342355650,1731774635048,-438.4791366,9.999e-05,2]
[342355651,1731774635058,-22758.85100342,9.999e-05,2]
[342355652,1731774635343,-227241.14899658,9.999e-05,2]
[342355653,1731774635353,-500.0,9.999e-05,2]
[342355654,1731774635365,-500.0,9.999e-05,2]
[342355655,1731774635374,-483.8,9.999e-05,2]
[342355656,1731774635383,-500.0,9.999e-05,2]
[342355657,1731774635392,-500.0,9.999e-05,2]
[342355658,1731774635402,-625.16100147,9.999e-05,2]
[342355659,1731774635411,-500.0,9.999e-05,2]
[342355660,1731774635422,-500.0,9.999e-05,2]
[342355661,1731774635431,-500.0,9.999e-05,2]
[342355662,1731774635440,-500.0,9.999e-05,2]
[342355663,1731774635449,-500.0,9.999e-05,2]
[342355664,1731774635459,-500.0,9.999e-05,2]
[342355665,1731774635468,-569.37591869,9.999e-05,2]
[342355666,1731774635478,-622.39,9.999e-05,2]
[342355667,1731774635487,-622.39,9.999e-05,2]
[342355668,1731774635496,-622.39,9.999e-05,2]
[342355669,1731774635505,-622.39,9.999e-05,2]
[342355670,1731774635513,-622.39,9.999e-05,2]
[342355671,1731774635523,-622.39,9.999e-05,2]
[342355672,1731774635532,-622.39,9.999e-05,2]
[342355673,1731774635541,-622.39,9.999e-05,2]
[342355674,1731774635550,-622.39,9.999e-05,2]
[342355675,1731774635559,-622.39,9.999e-05,2]
[342355676,1731774635568,-622.39,9.999e-05,2]
[342355677,1731774635577,-622.39,9.999e-05,2]
[342355678,1731774635586,-622.39,9.999e-05,2]
[342355679,1731774635595,-622.39,9.999e-05,2]
[342355680,1731774635604,-622.39,9.999e-05,2]
[342355681,1731774635817,-622.39,9.999e-05,2]
[342355682,1731774635828,-622.39,9.999e-05,2]
[342355683,1731774635837,-622.53532394,9.999e-05,2]
[342355684,1731774635846,-553.16,9.999e-05,2]
[342355685,1731774635856,-553.16,9.999e-05,2]
[342355686,1731774635865,-553.16,9.999e-05,2]
[342355687,1731774635875,-553.16,9.999e-05,2]
[342355688,1731774635885,-553.16,9.999e-05,2]
[342355689,1731774635894,-553.16,9.999e-05,2]
[342355690,1731774635903,-553.16,9.999e-05,2]
[342355691,1731774635913,-553.16,9.999e-05,2]
[342355692,1731774635924,-553.16,9.999e-05,2]
[342355693,1731774635932,-553.16,9.999e-05,2]
[342355694,1731774635942,-553.16,9.999e-05,2]
[342355695,1731774635951,-553.16,9.999e-05,2]
[342355696,1731774635961,-553.16,9.999e-05,2]
[342355697,1731774635971,-553.16,9.999e-05,2]
[342355698,1731774635981,-553.16,9.999e-05,2]
[342355699,1731774635990,-553.16,9.999e-05,2]
[342355700,1731774636001,-553.16,9.999e-05,2]
[342355701,1731774636010,-553.16,9.999e-05,2]
[342355702,1731774636021,-553.16,9.999e-05,2]
[342355703,1731774636031,-553.38730621,9.999e-05,2]
[342355704,1731774636041,-1484.2,9.999e-05,2]
[342355705,1731774636050,-1484.2,9.999e-05,2]
[342355706,1731774636060,-1484.2,9.999e-05,2]
[342355707,1731774636070,-1484.2,9.999e-05,2]
[342355708,1731774636080,-1484.2,9.999e-05,2]
[342355709,1731774636090,-1484.2,9.999e-05,2]
[342355710,1731774636099,-1484.2,9.999e-05,2]
[342355711,1731774636109,-1484.2,9.999e-05,2]
[342355712,1731774636118,-1484.2,9.999e-05,2]
[342355713,1731774636127,-1484.2,9.999e-05,2]
[342355714,1731774636136,-1484.2,9.999e-05,2]
[342355715,1731774636146,-1484.2,9.999e-05,2]
[342355716,1731774636155,-1484.2,9.999e-05,2]
[342355717,1731774636164,-1484.2,9.999e-05,2]
[342355718,1731774636176,-1484.2,9.999e-05,2]
[342355719,1731774636185,-1484.2,9.999e-05,2]
[342355720,1731774636195,-1484.2,9.999e-05,2]
[342355721,1731774636205,-1484.25445619,9.999e-05,2]
[342355722,1731774636214,-1491.2,9.999e-05,2]
[342355723,1731774636226,-1491.2,9.999e-05,2]
[342355724,1731774636235,-1491.2,9.999e-05,2]
[342355725,1731774636246,-1491.2,9.999e-05,2]
[342355726,1731774636255,-1491.2,9.999e-05,2]
[342355727,1731774636264,-1491.2,9.999e-05,2]
[342355728,1731774636274,-1491.2,9.999e-05,2]
[342355729,1731774636283,-1491.2,9.999e-05,2]
[342355730,1731774636292,-1491.2,9.999e-05,2]
[342355731,1731774636302,-1491.2,9.999e-05,2]
[342355732,1731774636312,-1491.2,9.999e-05,2]
[342355733,1731774636322,-1491.2,9.999e-05,2]
[342355734,1731774636332,-1491.2,9.999e-05,2]
[342355735,1731774636342,-1491.2,9.999e-05,2]
[342355736,1731774636351,-1491.2,9.999e-05,2]
[342355737,1731774636361,-1491.2,9.999e-05,2]
[342355738,1731774636371,-1491.2,9.999e-05,2]
[342355739,1731774636381,-1491.25872972,9.999e-05,2]
[342355740,1731774636391,-248.61,9.999e-05,2]
[342355741,1731774636400,-615.64,9.999e-05,2]
[342355742,1731774636410,-615.64,9.999e-05,2]
[342355743,1731774636422,-615.64,9.999e-05,2]
[342355744,1731774636434,-615.64,9.999e-05,2]
[342355745,1731774636445,-615.64,9.999e-05,2]
[342355746,1731774636455,-615.64,9.999e-05,2]
[342355747,1731774636466,-615.64,9.999e-05,2]
[342355748,1731774636475,-615.64,9.999e-05,2]
[342355749,1731774636485,-615.64,9.999e-05,2]
[342355750,1731774636494,-615.64,9.999e-05,2]
[342355751,1731774636503,-615.64,9.999e-05,2]
[342355752,1731774636513,-615.64,9.999e-05,2]
[342355753,1731774636523,-615.64,9.999e-05,2]
[342355754,1731774636536,-615.64,9.999e-05,2]
[342355755,1731774636548,-615.64,9.999e-05,2]
[342355756,1731774636558,-615.64,9.999e-05,2]
[342355757,1731774636568,-615.64,9.999e-05,2]
[342355758,1731774636577,-615.72,9.999e-05,2]
[342355759,1731774636587,-500.0,9.999e-05,2]
[342355760,1731774636597,-350.58080962,9.999e-05,2]
[342355761,1731774636606,-1249.04,9.999e-05,2]
[342355762,1731774636620,-1249.04,9.999e-05,2]
[342355763,1731774636630,-1249.04,9.999e-05,2]
[342355764,1731774636639,-1249.04,9.999e-05,2]
[342355765,1731774636649,-1249.04,9.999e-05,2]
[342355766,1731774636658,-1249.04,9.999e-05,2]
[342355767,1731774636668,-1249.04,9.999e-05,2]
[342355768,1731774636679,-1249.04,9.999e-05,2]
[342355769,1731774636689,-1249.04,9.999e-05,2]
[342355770,1731774636701,-1249.04,9.999e-05,2]
[342355771,1731774636710,-1249.04,9.999e-05,2]
[342355772,1731774636720,-1249.04,9.999e-05,2]
[342355773,1731774636729,-1249.04,9.999e-05,2]
[342355774,1731774636739,-1249.04,9.999e-05,2]
[342355775,1731774636749,-1249.04,9.999e-05,2]
[342355776,1731774636759,-1249.04,9.999e-05,2]
[342355777,1731774636768,-1249.04,9.999e-05,2]
[342355778,1731774636778,-500.0,9.999e-05,2]
[342355779,1731774636788,-1249.05119388,9.999e-05,2]
[342355780,1731774636797,-238.35,9.999e-05,2]
[342355781,1731774636807,-500.0,9.999e-05,2]
[342355782,1731774636817,-500.0,9.999e-05,2]
[342355783,1731774636827,-500.0,9.999e-05,2]
[342355784,1731774636837,-500.0,9.999e-05,2]
[342355785,1731774636846,-500.0,9.999e-05,2]
[342355786,1731774636856,-500.0,9.999e-05,2]
[342355787,1731774636865,-500.0,9.999e-05,2]
[342355788,1731774636875,-500.0,9.999e-05,2]
[342355789,1731774636887,-500.0,9.999e-05,2]
[342355790,1731774636896,-500.0,9.999e-05,2]
[342355791,1731774636907,-500.0,9.999e-05,2]
[342355792,1731774636917,-500.0,9.999e-05,2]
[342355793,1731774636930,-500.0,9.999e-05,2]
[342355794,1731774636940,-500.0,9.999e-05,2]
[342355795,1731774636949,-500.0,9.999e-05,2]
[342355796,1731774636959,-500.0,9.999e-05,2]
[342355797,1731774636969,-500.0,9.999e-05,2]
[342355798,1731774636978,-500.0,9.999e-05,2]
[342355799,1731774636987,-513.33760125,9.999e-05,2]
[342355800,1731774636996,-500.0,9.999e-05,2]
[342355801,1731774637005,-500.0,9.999e-05,2]
[342355802,1731774637014,-500.0,9.999e-05,2]
[342355803,1731774637023,-419.82,9.999e-05,2]
[342355804,1731774637033,-500.0,9.999e-05,2]
[342355805,1731774637043,-500.0,9.999e-05,2]
[342355806,1731774637052,-500.0,9.999e-05,2]
[342355807,1731774637062,-359.91,9.999e-05,2]
[342355808,1731774637071,-500.0,9.999e-05,2]
[342355809,1731774637080,-442.96,9.999e-05,2]
[342355810,1731774637090,-4682.94628936,0.0001,2]
[342355811,1731774637099,-150.0,0.0001,2]
[342355812,1731774637108,-1160.0,0.0001,2]
[342355813,1731774637118,-5933.0,0.0001,2]
[342355814,1731774637128,-268801.48547922,0.0001,2]
[342355815,1731774637143,-43846.0,0.0001,2]
[342355816,1731774637157,-3079.16666141,0.0001,2]
[342355817,1731774637168,-31922.33598082,0.0001,2]
[342355818,1731774637191,-7222.36327885,0.0001,2]
[342355819,1731774637203,-8780.0,0.0001,2]
[342355820,1731774637214,-1049.084335,0.0001,2]
[342355821,1731774637226,-287.445006,0.0001,2]
[342355822,1731774637246,-2175.03668073,0.0001,2]
[342355823,1731774637263,-971.80354033,0.0001,2]
[342355826,1731774637553,846.7,8.219e-05,2]
[342355829,1731774637853,-1000.0,0.0001,2]
[342355830,1731774637865,-737.50905639,0.0001,2]
[342355831,1731774637876,-906.76140788,0.0001,2]
[342355832,1731774637887,-544.03178414,0.0001,2]
[342355833,1731774637909,-7883.78610003,0.0001,2]
[342355834,1731774637923,-1223.49203546,0.0001,2]
[342355835,1731774637937,-2512.94831907,0.0001,2]
[342355836,1731774637957,-3949.66852044,0.0001,2]
[342355837,1731774637969,-380.20270927,0.0001,2]
[342355838,1731774637980,-880.92233807,0.0001,2]
[342355839,1731774637991,-1234.63522344,0.0001,2]
[342355840,1731774638133,-5037.96241831,0.0001,2]
[342355841,1731774638145,-122304.3978891,0.0001,2]
[342355842,1731774638157,-925.901525,0.0001,2]
[342355843,1731774638178,-17383.96716344,0.0001,2]
[342355844,1731774638198,-565.59090259,0.0001,2]
[342355861,1731774639661,-460.63094984,0.0001,2]
[342355864,1731774639674,-649.90265183,0.0001,2]
[342355866,1731774639685,-9913.35077084,0.0001,2]
[342355868,1731774639696,-325.58261781,0.0001,2]
[342355871,1731774639721,-729.12422394,0.0001,2]
[342355874,1731774639732,-550.08904819,0.0001,2]
[342355880,1731774639781,-1783.79797199,0.0001,2]
[342355882,1731774639792,-274.68869892,0.0001,2]
[342355884,1731774639804,-1979.79404271,0.0001,2]
[342355886,1731774639840,-34448.46528685,0.0001,2]
[342355887,1731774639851,-1156.2,0.0001,2]
[342355888,1731774639863,-2689.99555988,0.0001,2]
[342355889,1731774639875,-333.81892786,0.0001,2]
[342355890,1731774639900,-757.95775034,0.0001,2]
[342355891,1731774639910,-10492.15977894,0.0001,2]
[342355892,1731774639920,-631.0,0.0001,2]
[342355893,1731774639932,-6611.0377376,0.0001,2]
[342355894,1731774639945,-7359.11336155,0.0001,2]
[342355895,1731774639957,-7186.26748126,0.0001,2]
[342355896,1731774639969,-3622.6998228,0.0001,2]
[342355897,1731774639980,-303.43439293,0.0001,2]
[342355898,1731774639992,-943.97489499,0.0001,2]
[342355899,1731774640003,-600.70263248,0.0001,2]
[342355900,1731774640014,-475.10769815,0.0001,2]
[342355901,1731774640025,-1087.25603098,0.0001,2]
[342355903,1731774640037,-2207.375001,0.0001,2]
[342355929,1731774642746,-2505.47355028,0.0001,2]
[342355930,1731774642757,-3481.17594069,0.0001,2]
[342355931,1731774642804,-448.2769964,0.0001,2]
[342355932,1731774642816,-5134.33640898,0.0001,2]
[342355933,1731774642827,-2293.38941841,0.0001,2]
[342355934,1731774642840,-2231.94674399,0.0001,2]
[342355935,1731774642922,-567.90186328,0.0001,2]
[342355936,1731774642936,-390.47429039,0.0001,2]
[342355937,1731774642978,-82781.48216442,0.0001,2]
[342355939,1731774643038,-6233.990245,0.0001,2]
[342355941,1731774643050,-2240.0,0.0001,2]
[342355948,1731774645793,-7092.91381438,0.0001,2]
[342355949,1731774645805,-4244.99804662,0.0001,2]
[342355950,1731774645819,-2878.1,0.0001,2]
[342355951,1731774645830,-1610.97287314,0.0001,2]
[342355952,1731774645841,-65088.7634559,0.0001,2]
[342355953,1731774645851,-2086.79999729,0.0001,2]
[342355954,1731774645862,-300.0,0.0001,2]
[342355955,1731774645898,-10652.15219314,0.0001,2]
[342355956,1731774645909,-8800.0,0.0001,2]
[342355957,1731774645920,-2137.90186013,0.0001,2]
[342355958,1731774645958,-3291.3,0.0001,2]
[342355959,1731774646020,-45550.12150071,0.0001,2]
[342355964,1731774801045,2000.0,0.00024999,120]
[342355965,1731775121832,150.0,0.00025,60]
[342355966,1731775122637,150.0,0.00025,60]
[342355967,1731775123200,165.565127,0.00025,60]
[342355968,1731775124151,150.0,0.00025,60]
[342355969,1731775124491,150.0,0.00025,60]
[342355970,1731775124918,150.0,0.00025,60]
[342355971,1731775125497,177.100711,0.00025,60]
[342355972,1731775302484,867.65,8.219e-05,2]
[342355973,1731775400003,2000.0,0.00024999,120]
[342355974,1731775422573,150.0,0.00025,60]
[342355975,1731775467384,25000.0,1e-05,2]
[342355976,1731775537991,5000.0,0.00025,62]
[342355977,1731775628105,-250.0,8.923e-05,2]
[342355978,1731775628126,-2111.53,8.923e-05,2]
[342355979,1731775628147,-193.17,9.001e-05,2]
[342355980,1731775628168,-250.0,9.01e-05,2]
[342355981,1731775628195,-150.0,9.178e-05,2]
[342355982,1731775628215,-1000.0,9.196e-05,2]
[342355983,1731775628236,-892.47628881,9.196e-05,2]
[342355984,1731775628255,-150.0,9.196e-05,2]
[342355985,1731775628275,-18707.97199783,9.197e-05,2]
[342355986,1731775636144,-1070.37494236,9.197e-05,2]
[342355987,1731775651156,-1005.7306146,9.197e-05,2]
[342355991,1731775745103,-1000.0,8.928e-05,2]
[342356007,1731775832135,-396.55,9.01e-05,2]
[342356008,1731775832147,-1000.0,9.01e-05,2]
[342356009,1731775832158,-150.0,9.196e-05,2]
[342356010,1731775832167,-300.0,9.196e-05,2]
[342356011,1731775832178,-4039.78005679,9.197e-05,2]
[342356012,1731775832190,-39826.01078842,9.197e-05,2]
[342356013,1731775832199,-2581.478,9.197e-05,2]
[342356014,1731775832209,-10119.1266,9.197e-05,2]
[342356015,1731775832219,-5391.77,9.197e-05,2]
[342356016,1731775832229,-1738.847,9.197e-05,2]
[342356017,1731775832238,-165.01,9.229e-05,2]
[342356018,1731775832248,-180.55,9.371e-05,2]
[342356019,1731775832257,-263.6189,9.434e-05,2]
[342356020,1731775832267,-200.0,9.502e-05,2]
[342356021,1731775832276,-150.0,9.534e-05,2]
[342356022,1731775832285,-968.32,9.534e-05,2]
[342356023,1731775832295,-433.27,9.534e-05,2]
[342356025,1731775832304,-433.27,9.534e-05,2]
[342356027,1731775832314,-968.32,9.534e-05,2]
[342356029,1731775832324,-968.32,9.534e-05,2]
[342356031,1731775832333,-433.27,9.534e-05,2]
[342356033,1731775832344,-968.32,9.534e-05,2]
[342356035,1731775832354,-433.27,9.534e-05,2]
[342356037,1731775832367,-433.27,9.534e-05,2]
[342356038,1731775832376,-968.32,9.534e-05,2]
[342356040,1731775832386,-968.32,9.534e-05,2]
[342356042,1731775832396,-433.27,9.534e-05,2]
[342356044,1731775832405,-433.27,9.534e-05,2]
[342356046,1731775832415,-968.32,9.534e-05,2]
[342356048,1731775832425,-968.32,9.534e-05,2]
[342356051,1731775832434,-866.47,9.534e-05,2]
[342356054,1731775832443,-968.32,9.534e-05,2]
[342356056,1731775832453,-433.27,9.534e-05,2]
[342356059,1731775832462,-968.32,9.534e-05,2]
[342356062,1731775832471,-968.32,9.534e-05,2]
[342356065,1731775832480,-611.93763965,9.589e-05,2]
[342356067,1731775832490,-500.0,9.589e-05,2]
[342356070,1731775832500,-1205.39,9.589e-05,2]
[342356073,1731775832509,-261.83406558,9.597e-05,2]
[342356076,1731775832519,-1092.31,9.67e-05,2]
[342356078,1731775832528,-6946.41,9.67e-05,2]
[342356081,1731775832537,-560.1,9.67e-05,2]
[342356083,1731775832547,-373.99,9.67e-05,2]
[342356085,1731775832556,-7207.57,9.67e-05,2]
[342356087,1731775832566,-501.54354593,9.798e-05,2]
[342356089,1731775832576,-1205.39,9.798e-05,2]
[342356091,1731775832586,-1205.39,9.799e-05,2]
[342356093,1731775832596,-1205.39,9.799e-05,2]
[342356095,1731775832606,-9927.5047,9.899e-05,2]
[342356098,1731775832620,-27897.399,9.899e-05,2]
[342356100,1731775832629,-4404.6443,9.899e-05,2]
[342356101,1731775832639,-9738.7916,9.9e-05,2]
[342356104,1731775832650,-631.6596,9.9e-05,2]
[342356105,1731775832661,-9847.2509,9.9e-05,2]
[342356108,1731775832671,-350.7286,9.9e-05,2]
[342356109,1731775832681,-1431.7459,9.9e-05,2]
[342356112,1731775832691,-1477.0091,9.9e-05,2]
[342356114,1731775832700,-1944.55994,9.9e-05,2]
[342356116,1731775832710,-150.0,9.9e-05,2]
[342356118,1731775832719,-968.32,9.9e-05,2]
[342356120,1731775832729,-433.27,9.9e-05,2]
[342356122,1731775832738,-300.0,9.9e-05,2]
[342356123,1731775832748,-150.0,9.902e-05,2]
[342356124,1731775832758,-500.0,9.973e-05,2]
[342356125,1731775832767,-474.07600176,9.973e-05,2]
[342356126,1731775832777,-500.0,9.973e-05,2]
[342356127,1731775832787,-500.0,9.973e-05,2]
[342356128,1731775832797,-433.27,9.98e-05,2]
[342356129,1731775832807,-1029.82,9.98e-05,2]
[342356130,1731775832817,-763.3,9.98e-05,2]
[342356131,1731775832836,-150.0,9.98e-05,2]
[342356132,1731775832853,-440.49,9.98e-05,2]
[342356133,1731775832864,-362.36,9.98e-05,2]
[342356134,1731775832874,-150.0,9.98e-05,2]
[342356135,1731775832884,-1562.79,9.987e-05,2]
[342356136,1731775832895,-175.214,9.987e-05,2]
[342356137,1731775832904,-620.2079316,9.99e-05,2]
[342356138,1731775832914,-9079.0482521,9.991e-05,2]
[342356139,1731775832924,-2708.1024162,9.991e-05,2]
[342356140,1731775832934,-8213.323316,9.993e-05,2]
[342356141,1731775832945,-7347.5983798,9.993e-05,2]
[342356142,1731775832955,-6481.8734437,9.993e-05,2]
[342356143,1731775832968,-2453.2806655,9.993e-05,2]
[342356144,1731775832978,-2198.4589147,9.993e-05,2]
[342356145,1731775832988,-1943.637164,9.993e-05,2]
[342356146,1731775832997,-561.8488127,9.993e-05,2]
[342356147,1731775833007,-503.4896937,9.993e-05,2]
[342356148,1731775833017,-445.1305748,9.993e-05,2]
[342356149,1731775833327,-500.0,9.997e-05,2]
[342356150,1731775833338,-1205.39,9.998e-05,2]
[342356151,1731775833348,-1205.39,9.998e-05,2]
[342356152,1731775833360,-25000.0,9.998e-05,2]
[342356153,1731775833370,-165.2568554,9.999e-05,2]
[342356154,1731775833380,-220.70786873,9.999e-05,2]
[342356155,1731775833389,-1205.39,9.999e-05,2]
[342356156,1731775833400,-1205.39,9.999e-05,2]
[342356157,1731775833410,-1205.39,9.999e-05,2]
[342356158,1731775833420,-1205.39,9.999e-05,2]
[342356159,1731775833430,-1205.39,9.999e-05,2]
[342356160,1731775833440,-1205.39,9.999e-05,2]
[342356161,1731775833450,-1205.39,9.999e-05,2]
[342356162,1731775833460,-1205.39,9.999e-05,2]
[342356163,1731775833470,-1205.39,9.999e-05,2]
[342356164,1731775833480,-1205.39,9.999e-05,2]
[342356165,1731775833490,-1205.39,9.999e-05,2]
[342356166,1731775833500,-1205.39,9.999e-05,2]
[342356167,1731775833510,-1205.39,9.999e-05,2]
[342356168,1731775833520,-1205.39,9.999e-05,2]
[342356169,1731775833530,-1205.39,9.999e-05,2]
[342356170,1731775833541,-1205.39,9.999e-05,2]
[342356171,1731775833551,-1205.39,9.999e-05,2]
[342356172,1731775833560,-1205.50105115,9.999e-05,2]
[342356173,1731775833570,-500.0,9.999e-05,2]
[342356174,1731775833584,-500.0,9.999e-05,2]
[342356175,1731775833595,-500.0,9.999e-05,2]
[342356176,1731775833605,-289.6,9.999e-05,2]
[342356177,1731775833618,-4612.70209502,0.0001,2]
[342356178,1731775833629,-150.0,0.0001,2]
[342356179,1731775833640,-150.449,0.0001,2]
[342356180,1731775833650,-150.0,0.0001,2]
[342356181,1731775833660,-166.043,0.0001,2]
[342356182,1731775833670,-290.667,0.0001,2]
[342356183,1731775833680,-170.108,0.0001,2]
[342356184,1731775833690,-166.026,0.0001,2]
[342356185,1731775833700,-5942.46373712,0.0001,2]
[342356188,1731775838119,-1232.44275,0.0001,2]
[342356189,1731775838131,-1784.89905192,0.0001,2]
[342356190,1731775838142,-1185.7774649,0.0001,2]
[342356191,1731775838229,-3908.91604442,0.0001,2]
[342356192,1731775838340,-859.14591234,0.0001,2]
[342356200,1731775839817,-571.47561462,0.0001,2]
[342356201,1731775839829,-1368.14894443,0.0001,2]
[342356202,1731775839878,-186.57709414,9.999e-05,2]
[342356203,1731775839887,-368.10577154,0.0001,2]
[342356204,1731775841341,-2699.06833106,0.0001,2]
[342356205,1731775841353,-537.74439363,0.0001,2]
[342356206,1731775841366,-778.57509999,0.0001,2]
[342356221,1731775842915,-9213.57982456,0.0001,2]
[342356222,1731775842927,-3012.71595347,0.0001,2]
[342356223,1731775842939,-3154.42798834,0.0001,2]
[342356224,1731775842952,-55914.37254541,0.0001,2]
[342356225,1731775842964,-133661.31383427,0.0001,2]
[342356226,1731775842973,-36838.31861165,0.0001,2]
[342356229,1731775842995,-2997.30292386,0.0001,2]
[342356230,1731775843007,-3972.77246169,0.0001,2]
[342356231,1731775843088,-331.32,0.0001,2]
[342356237,1731775845859,-943.21498095,9.999e-05,3]
[342356239,1731775845871,-211.27378905,0.0001,2]
[342356240,1731775845883,-2600.0,0.0001,2]
[342356241,1731775845917,-622277.46188928,0.0001,2]
[342356242,1731775846035,-630.36491647,0.0001,2]
[342356246,1731776000430,2000.0,0.00024999,120]
[342356247,1731776008991,500.0,0.00024999,120]
[342356248,1731776179903,884.78,8.219e-05,2]
[342356249,1731776543844,1000.0,8.235e-05,2]
[342356251,1731776599946,2000.0,0.00024999,120]
[342356252,1731776607796,500.0,0.00024999,120]
[342356253,1731776724059,250.0,8.232e-05,2]
[342356254,1731776751132,-221.18,8.794e-05,2]
[342356255,1731776751155,-221.18,8.797e-05,2]
[342356256,1731776751177,-221.18,8.799e-05,2]
[342356257,1731776751200,-482.76,8.799e-05,2]
[342356258,1731776751233,-221.18,8.801e-05,2]
[342356259,1731776751260,-91.68348939,8.804e-05,2]
[342356260,1731776832164,-1620.2800202,8.797e-05,2]
[342356261,1731776832186,-129.49651061,8.804e-05,2]
[342356262,1731776832209,-221.18,8.806e-05,2]
[342356263,1731776832232,-221.18,8.808e-05,2]
[342356264,1731776832254,-221.18,8.811e-05,2]
[342356265,1731776832275,-221.18,8.813e-05,2]
[342356266,1731776832296,-221.18,8.815e-05,2]
[342356267,1731776832317,-221.18,8.817e-05,2]
[342356268,1731776832337,-221.18,8.82e-05,2]
[342356269,1731776832361,-221.18,8.822e-05,2]
[342356270,1731776832385,-221.18,8.824e-05,2]
[342356271,1731776832406,-221.18,8.827e-05,2]
[342356272,1731776832431,-221.18,8.829e-05,2]
[342356273,1731776832452,-221.18,8.831e-05,2]
[342356274,1731776832474,-221.18,8.834e-05,2]
[342356275,1731776832496,-221.18,8.836e-05,2]
[342356276,1731776832517,-221.18,8.838e-05,2]
[342356277,1731776832539,-227.93,8.944e-05,2]
[342356278,1731776832560,-159.39,9.087e-05,2]
[342356279,1731776832580,-167.0,9.109e-05,2]
[342356280,1731776832602,-1000.0,9.265e-05,2]
[342356281,1731776832623,-300.0,9.533e-05,2]
[342356282,1731776832644,-446.17,9.534e-05,2]
[342356283,1731776832665,-433.27,9.534e-05,2]
[342356284,1731776832686,-433.27,9.534e-05,2]
[342356285,1731776832707,-432.22,9.534e-05,2]
[342356286,1731776832727,-200.0,9.6e-05,2]
[342356287,1731776832748,-1619.96535444,9.606e-05,2]
[342356288,1731776841134,-978.03464556,9.606e-05,2]
[342356289,1731776841155,-150.0,9.665e-05,2]
[342356290,1731776841178,-150.99,9.67e-05,2]
[342356291,1731776841198,-150.0,9.67e-05,2]
[342356292,1731776841218,-843.62094207,9.7e-05,2]
[342356293,1731776853103,-600.0,9e-05,3]
[342356294,1731776853126,-1200.0,9.1e-05,3]
[342356295,1731776853148,-156.37905793,9.7e-05,2]
[342356296,1731776853170,-401.77368214,9.7e-05,2]
[342356297,1731776878167,959.55,8.219e-05,2]
[342356299,1731776954092,-210.0,8.877e-05,2]
[342356300,1731776954114,-280.01,8.904e-05,2]
[342356312,1731777002274,152.23137768,8.904e-05,2]
[342356318,1731777028019,250.0,8.192e-05,2]
[342356328,1731777032406,-1900.0,9.2e-05,3]
[342356329,1731777032416,-2500.0,9.3e-05,3]
[342356330,1731777032425,-3200.0,9.4e-05,3]
[342356331,1731777032436,-600.0,9.5e-05,3]
[342356332,1731777032446,-600.0,9.6e-05,3]
[342356333,1731777032462,-3838.5904,9.7e-05,2]
[342356334,1731777032471,-6649.7147,9.7e-05,2]
[342356335,1731777032480,-600.0,9.7e-05,3]
[342356336,1731777032491,-150.0,9.724e-05,2]
[342356337,1731777032500,-150.0,9.74e-05,2]
[342356338,1731777032509,-150.0,9.772e-05,2]
[342356339,1731777032519,-156.3237768,9.773e-05,2]
[342356340,1731777032527,-501.89352519,9.773e-05,2]
[342356341,1731777032538,-500.0,9.773e-05,2]
[342356342,1731777032548,-162.20843152,9.773e-05,2]
[342356343,1731777032559,-500.0,9.773e-05,2]